bitfinex-derivatives/quotes_ETHF0:USTF0_20241228
["timestamp","ask_amount","ask_price","bid_price","bid_amount"]
[1735344265621,3.2078,3336.3,3335.8,0.4283]
[1735344265823,3.2078,3336.3,3335.6,3.2078]
[1735344266022,3.2078,3336.3,3335.7,0.30021]
[1735344266023,0.30019,3336.1,3335.7,0.30021]
[1735344266219,0.30017,3336.2,3335.8,0.3002]
[1735344267029,3.2078,3336.3,3335.6,3.2078]
[1735344267030,3.50796,3336.3,3335.6,3.2078]
[1735344267527,0.30017,3336.2,3335.6,3.2078]
[1735344267821,0.30016,3336.4,3336.0,0.30019]
[1735344268520,3.2078,3336.7,3335.6,3.2078]
[1735344268726,0.30017,3336.3,3335.6,3.2078]
[1735344268923,0.30017,3336.3,3336.0,0.30019]
[1735344270916,3.2078,3336.7,3336.6,0.30014]
[1735344271121,3.2078,3337.1,3336.1,2.93792166]
[1735344271322,3.2078,3337.1,3336.9,0.30011]
[1735344271627,3.2078,3337.1,3336.2,1.3575]
[1735344271821,3.2078,3337.1,3336.3,0.30016]
[1735344272024,3.2078,3337.1,3336.2,1.3575]
[1735344272025,0.24515283,3338.2,3336.9,6.14572166]
[1735344272224,0.24515283,3338.2,3336.2,6.3575]
[1735344272225,0.24515283,3338.2,3338.0,0.30001]
[1735344272522,3.2078,3339.0,3337.9,6.14572166]
[1735344272826,0.29996,3338.6,3338.0,0.30001]
[1735344273331,0.29997,3338.5,3337.9,6.44574166]
[1735344273529,3.2078,3339.0,3337.9,6.14572166]
[1735344273730,0.29997,3338.5,3337.9,6.14572166]
[1735344274524,3.2078,3338.6,3337.9,6.14572166]
[1735344274825,0.29997,3338.5,3337.9,6.14572166]
[1735344275327,3.2078,3338.6,3337.9,6.14572166]
[1735344275523,0.29999,3338.3,3337.9,6.14572166]
[1735344276529,3.2078,3338.6,3337.9,6.14572166]
[1735344276725,0.3,3338.2,3337.9,6.14572166]
[1735344277525,3.2078,3338.6,3337.9,6.14572166]
[1735344277731,3.2078,3339.0,3337.9,6.14572166]
[1735344277927,0.29993,3338.9,3338.3,6.14572166]
[1735344278728,0.29993,3338.9,3338.4,0.29997]
[1735344278924,3.2078,3339.1,3338.3,6.14572166]
[1735344279121,3.2078,3339.1,3337.9,6.14572166]
[1735344279525,0.29998,3338.4,3338.0,0.30001]
[1735344280529,3.2078,3339.1,3337.9,6.14572166]
[1735344280729,3.2078,3338.6,3337.9,3.2078]
[1735344280926,3.2078,3338.2,3337.6,1.6927]
[1735344281132,0.30003,3337.8,3337.6,1.6927]
[1735344282431,0.30004,3337.7,3337.6,0.4547]
[1735344282733,0.30005,3337.6,3337.5,3.2078]
[1735344284034,3.2078,3338.9,3337.5,8.2078]
[1735344284228,0.29993,3339.0,3338.2,3.2078]
[1735344284434,0.29988,3339.5,3338.9,0.29993]
[1735344284735,0.29991,3339.2,3338.8,0.29993]
[1735344285337,3.2078,3339.6,3338.7,0.4567]
[1735344285533,0.29992,3339.0,3338.7,0.4567]
[1735344286036,0.29992,3339.0,3338.7,0.75664]
[1735344286838,0.29992,3339.0,3338.7,0.4567]
[1735344287836,3.2078,3339.6,3338.7,0.4567]
[1735344288442,0.29994,3338.8,3338.7,0.4567]
[1735344289731,0.29994,3338.8,3338.6,3.2078]
[1735344289732,3.2078,3339.2,3338.6,3.2078]
[1735344289933,0.29997,3338.4,3338.1,3.2078]
[1735344290237,0.29997,3338.5,3338.2,0.29999]
[1735344291239,3.2078,3338.8,3338.3,3.23790166]
[1735344291540,0.29997,3338.5,3338.3,2.93792166]
[1735344292238,3.2078,3338.8,3338.3,2.93792166]
[1735344292438,0.29996,3338.6,3338.3,3.23790166]
[1735344293033,0.29996,3338.6,3338.4,0.29997]
[1735344293239,0.29996,3338.6,3338.3,3.23790166]
[1735344294136,3.6511,3339.0,3338.3,3.23790166]
[1735344294438,0.29997,3338.4,3338.3,2.93792166]
[1735344297142,0.29999,3338.2,3338.1,3.2078]
[1735344299238,3.2078,3338.2,3337.5,6.14572166]
[1735344299543,0.30005,3337.6,3337.5,6.14572166]
[1735344300237,3.2078,3337.8,3337.1,6.14572166]
[1735344300637,0.8977,3338.1,3337.1,6.14572166]
[1735344300838,0.30006,3337.5,3337.1,6.14572166]
[1735344301032,0.30006,3337.5,3337.3,0.30007]
[1735344301234,3.2078,3337.9,3337.1,6.14572166]
[1735344301645,0.30006,3337.4,3337.2,0.30008]
[1735344301941,0.30005,3337.6,3337.4,0.30006]
[1735344302337,3.2078,3337.9,3337.2,0.30008]
[1735344302531,3.2078,3337.9,3337.1,6.14572166]
[1735344302731,0.30008,3337.3,3337.1,6.14572166]
[1735344302937,0.30008,3337.3,3337.1,6.44581166]
[1735344303139,0.30007,3337.4,3337.2,0.30008]
[1735344303348,3.2078,3337.9,3337.1,6.14572166]
[1735344303637,0.30007,3337.4,3337.1,6.44581166]
[1735344304140,3.2078,3337.9,3337.1,6.44581166]
[1735344304345,0.30003,3337.8,3337.1,6.14572166]
[1735344304643,3.2078,3337.9,3337.1,6.14572166]
[1735344304841,0.30007,3337.4,3337.1,6.44581166]
[1735344305042,0.30005,3337.6,3337.2,0.30008]
[1735344305246,0.30005,3337.6,3337.3,0.30007]
[1735344305935,0.30006,3337.5,3337.3,0.30007]
[1735344306647,3.2078,3337.9,3337.1,6.14572166]
[1735344306847,0.30004,3337.7,3337.4,0.30006]
[1735344307041,0.30006,3337.5,3337.3,0.30007]
[1735344307544,0.30005,3337.6,3337.4,0.30006]
[1735344308047,0.30004,3337.7,3337.3,2.28006334]
[1735344308242,0.30004,3337.7,3337.4,0.30006]
[1735344308645,0.4398,3338.1,3337.6,2.28006334]
[1735344308843,0.73981,3338.1,3337.9,2.58008334]
[1735344309541,0.30001,3338.1,3337.9,2.58008334]
[1735344309841,3.2078,3338.3,3338.2,0.29999]
[1735344310041,3.2078,3338.3,3338.2,2.58005334]
[1735344310242,0.426,3338.6,3338.2,2.28006334]
[1735344310544,0.426,3338.6,3338.4,0.29997]
[1735344310545,0.29996,3338.6,3338.4,0.29997]
[1735344311850,0.29997,3338.5,3338.3,0.29998]
[1735344312441,0.29996,3338.6,3338.3,0.29998]
[1735344313952,0.29996,3338.6,3338.2,2.28006334]
[1735344314147,0.29995,3338.7,3338.4,0.29997]
[1735344314548,0.4448,3338.8,3338.4,0.29997]
[1735344314851,0.29995,3338.7,3338.4,0.29997]
[1735344315052,3.2078,3338.9,3338.4,0.29997]
[1735344315245,0.29996,3338.6,3338.4,0.29997]
[1735344317448,3.2078,3338.9,3338.5,5.48786334]
[1735344317654,3.2078,3338.9,3338.8,2.58000334]
[1735344320051,3.6701,3339.7,3338.8,2.28006334]
[1735344320448,0.2999,3339.2,3338.9,0.29992]
[1735344320648,0.2999,3339.2,3338.9,0.29993]
[1735344320857,0.2999,3339.3,3339.0,0.29992]
[1735344321052,0.2999,3339.2,3339.0,0.29992]
[1735344321252,0.2999,3339.2,3338.8,2.28006334]
[1735344321449,0.2999,3339.2,3338.9,0.29992]
[1735344322053,0.29987,3339.6,3338.9,0.29993]
[1735344322252,0.74968,3339.6,3338.8,2.28006334]
[1735344322448,0.29991,3339.2,3338.8,2.28006334]
[1735344322755,0.29991,3339.2,3338.9,0.29993]
[1735344323145,3.6701,3339.7,3338.8,2.28006334]
[1735344323351,0.29987,3339.6,3339.2,0.2999]
[1735344323554,0.29988,3339.5,3339.2,0.2999]
[1735344323751,3.6701,3339.7,3339.1,2.28006334]
[1735344323959,0.2999,3339.2,3339.1,2.28006334]
[1735344324459,3.6701,3339.7,3339.1,2.28006334]
[1735344324756,3.6701,3339.7,3339.1,2.57997334]
[1735344324757,0.29989,3339.4,3339.1,2.57997334]
[1735344324949,3.6701,3339.7,3338.9,3.2078]
[1735344325150,0.29992,3339.0,3338.9,3.2078]
[1735344325352,0.29992,3339.0,3338.6,0.437]
[1735344325353,3.2078,3339.3,3338.6,0.437]
[1735344325546,0.29995,3338.7,3338.6,0.437]
[1735344326155,0.29993,3338.9,3338.6,0.73696]
[1735344326657,0.29994,3338.8,3338.6,0.73696]
[1735344326855,0.29996,3338.6,3338.5,3.2078]
[1735344327063,0.29998,3338.3,3338.2,2.28006334]
[1735344328959,0.7499,3338.6,3337.9,2.28006334]
[1735344329152,0.4423,3338.7,3338.2,2.28006334]
[1735344329549,0.29997,3338.5,3338.3,0.29998]
[1735344330563,0.4423,3338.7,3338.2,2.28006334]
[1735344330758,0.29996,3338.6,3338.4,0.29997]
[1735344330960,3.2078,3338.8,3338.2,2.28006334]
[1735344331161,3.50774,3338.8,3338.6,0.29995]
[1735344331866,0.29993,3338.9,3338.7,0.29994]
[1735344332861,0.29993,3338.9,3338.5,2.28006334]
[1735344332862,0.29993,3338.9,3338.6,0.29995]
[1735344333062,0.29995,3338.8,3338.5,2.58002334]
[1735344333764,0.2999,3339.2,3338.7,0.29995]
[1735344334066,0.29993,3338.9,3338.8,2.28006334]
[1735344334460,3.2078,3339.3,3338.8,2.28006334]
[1735344334660,0.29992,3339.0,3338.8,2.57999334]
[1735344335160,0.29992,3339.0,3338.8,2.28006334]
[1735344335368,0.29992,3339.0,3338.8,2.58000334]
[1735344335761,3.2078,3339.3,3338.8,2.58000334]
[1735344335961,0.29992,3339.1,3338.8,2.58000334]
[1735344336163,3.2078,3339.3,3338.8,2.28006334]
[1735344336362,3.2078,3339.8,3339.2,2.57996334]
[1735344336567,0.29989,3339.4,3339.2,2.57996334]
[1735344337369,0.29989,3339.4,3339.2,2.28006334]
[1735344338863,0.29986,3339.7,3339.2,2.28006334]
[1735344339070,0.29986,3339.7,3339.4,0.29988]
[1735344339269,0.29986,3339.7,3339.5,2.28006334]
[1735344339470,0.29986,3339.7,3339.5,2.57993334]
[1735344339972,0.29986,3339.7,3339.5,2.28006334]
[1735344340568,0.29986,3339.7,3339.5,2.57993334]
[1735344340763,0.29986,3339.7,3339.5,2.28006334]
[1735344342267,0.29986,3339.7,3339.5,2.57994334]
[1735344342671,3.2078,3339.8,3339.7,0.29986]
[1735344342876,0.4656,3340.2,3340.0,0.29982]
[1735344343169,0.18788194,3340.4,3340.1,6.73386334]
[1735344343368,0.18788194,3340.4,3340.1,3.52606334]
[1735344344173,0.18788194,3340.4,3340.1,2.28006334]
[1735344344380,0.29984,3339.9,3339.8,2.28006334]
[1735344344871,0.29983,3340.0,3339.8,2.28006334]
[1735344345170,0.29984,3339.9,3339.8,2.28006334]
[1735344346875,0.4534,3340.1,3339.5,2.28006334]
[1735344347077,0.29987,3339.6,3339.5,2.28006334]
[1735344347873,0.29986,3339.8,3339.5,2.57993334]
[1735344348875,0.29986,3339.7,3339.5,2.28006334]
[1735344349776,0.453,3340.2,3339.5,2.28006334]
[1735344349975,0.18788194,3340.4,3340.3,0.2998]
[1735344350271,0.18788194,3340.4,3340.3,2.57986334]
[1735344351266,3.2078,3341.4,3340.3,7.28006334]
[1735344351472,0.29969,3341.6,3341.3,2.57977334]
[1735344351673,0.29969,3341.7,3341.4,0.2997]
[1735344351883,0.29969,3341.6,3341.3,2.57977334]
[1735344352378,3.2078,3341.4,3340.6,3.2078]
[1735344352581,0.29977,3340.8,3340.6,3.2078]
[1735344352782,0.29977,3340.7,3340.6,3.2078]
[1735344353782,0.29976,3340.8,3340.6,3.2078]
[1735344354179,0.8944,3341.3,3340.5,2.28006334]
[1735344354382,0.29975,3341.0,3340.6,0.29978]
[1735344355281,0.8944,3341.3,3340.5,2.28006334]
[1735344355483,3.2078,3341.4,3340.8,2.28006334]
[1735344355781,3.50751,3341.4,3341.0,0.29974]
[1735344355980,3.97361,3341.4,3341.0,0.29974]
[1735344356183,0.29972,3341.3,3341.0,0.29974]
[1735344356481,0.29972,3341.3,3340.9,0.29975]
[1735344356979,0.29972,3341.3,3341.0,0.29973]
[1735344357187,0.91306182,3342.6,3341.0,7.76792668]
[1735344357485,0.29965,3342.0,3341.7,2.28006334]
[1735344358280,0.4252,3342.1,3341.9,0.29965]
[1735344358679,0.4252,3342.1,3341.7,2.28006334]
[1735344358979,0.4252,3342.1,3341.8,0.29966]
[1735344359181,0.4252,3342.1,3341.7,2.28006334]
[1735344359384,0.4252,3342.1,3341.9,0.29966]
[1735344359883,0.4252,3342.1,3341.7,2.28006334]
[1735344360474,0.29966,3341.9,3341.7,2.28006334]
[1735344360674,0.4252,3342.1,3341.4,3.2078]
[1735344360992,0.4252,3342.1,3340.6,0.7483]
[1735344360993,3.2078,3341.9,3341.1,2.28006334]
[1735344361281,0.437,3341.8,3341.1,2.28006334]
[1735344361484,0.29972,3341.3,3341.1,2.28006334]
[1735344361779,0.29971,3341.4,3341.1,2.28006334]
[1735344362682,0.29972,3341.2,3341.1,2.28006334]
[1735344364082,0.4679,3341.3,3341.1,2.28006334]
[1735344364273,0.76762,3341.3,3341.1,2.28006334]
[1735344365480,3.2078,3341.5,3341.1,2.28006334]
[1735344365680,0.4552,3341.7,3341.4,2.57976334]
[1735344365681,0.75488,3341.7,3341.4,2.57976334]
[1735344366178,0.4552,3341.7,3341.4,2.28006334]
[1735344366382,0.2997,3341.5,3341.4,2.28006334]
[1735344366892,0.2997,3341.5,3341.1,0.29973]
[1735344366893,0.4552,3341.7,3341.1,2.28006334]
[1735344367081,0.29971,3341.3,3341.1,2.28006334]
[1735344367479,0.29972,3341.2,3341.1,2.28006334]
[1735344368476,3.2078,3341.5,3341.1,0.44846]
[1735344368685,0.29972,3341.2,3341.1,0.44846]
[1735344368985,0.74937,3341.0,3340.1,2.73736334]
[1735344369181,3.2078,3340.8,3340.1,2.73736334]
[1735344369379,0.29979,3340.5,3340.4,2.28006334]
[1735344370080,0.29979,3340.5,3340.4,2.39116334]
[1735344370388,0.29979,3340.5,3340.4,0.1111]
[1735344383591,4.1123,3340.8,3340.4,0.1111]
[1735344383789,0.29978,3340.6,3340.4,0.1111]
[1735344383990,0.29978,3340.6,3340.4,0.558]
[1735344384186,0.29977,3340.7,3340.4,0.85779]
[1735344384599,4.1123,3340.8,3340.4,0.85779]
[1735344384600,4.1123,3340.8,3340.4,0.1111]
[1735344384895,0.29979,3340.5,3340.4,0.1111]
[1735344385297,0.29979,3340.5,3340.4,0.1085297]
[1735344385500,7.84010213,3340.7,3339.9,0.4552]
[1735344385695,0.29983,3340.0,3339.9,0.4552]
[1735344386093,0.29983,3340.0,3339.7,0.4694]
[1735344386094,0.29985,3339.8,3339.7,0.4694]
[1735344388299,2.28006334,3340.5,3339.7,0.4694]
[1735344388300,3.2078,3340.4,3339.7,0.4694]
[1735344388488,3.2078,3340.4,3340.2,0.29981]
[1735344388693,3.2078,3340.4,3340.1,2.28006334]
[1735344388997,3.5076,3340.4,3340.2,0.29981]
[1735344389304,3.5076,3340.4,3340.2,0.40811]
[1735344389796,0.2998,3340.3,3340.2,0.40811]
[1735344389990,3.2078,3340.4,3340.2,0.40811]
[1735344389991,3.5076,3340.4,3340.2,0.40811]
[1735344390587,3.2078,3340.4,3340.2,0.40811]
[1735344390791,0.2998,3340.3,3340.2,0.40811]
[1735344390994,3.5076,3340.4,3340.2,0.40811]
[1735344391195,3.5076,3340.4,3340.2,0.1083]
[1735344391397,3.2078,3340.4,3340.3,0.2998]
[1735344391596,3.2078,3340.4,3340.3,0.7419]
[1735344392207,0.29979,3340.5,3340.4,0.29979]
[1735344392597,0.29979,3340.5,3340.4,0.75019]
[1735344392897,0.906,3341.0,3340.4,0.4504]
[1735344392898,0.4444,3341.0,3340.4,0.4504]
[1735344393101,3.2078,3341.2,3340.9,0.29975]
[1735344393403,3.2078,3341.2,3341.1,0.29973]
[1735344394401,3.2078,3341.2,3341.1,0.76953]
[1735344394609,3.50752,3341.2,3341.1,0.4698]
[1735344394809,3.2078,3341.2,3341.1,0.76953]
[1735344395005,3.2078,3341.2,3341.1,0.4698]
[1735344395703,3.2078,3341.2,3341.1,0.76953]
[1735344396008,3.50752,3341.2,3341.1,0.4698]
[1735344396904,0.29972,3341.2,3341.1,0.4698]
[1735344397103,0.29975,3341.0,3340.7,0.29976]
[1735344397606,0.29975,3340.9,3340.7,0.29976]
[1735344397808,3.6584,3341.5,3340.2,0.1083]
[1735344397809,3.2078,3341.1,3340.2,3.61591]
[1735344398015,0.2998,3340.3,3340.2,3.3161]
[1735344398909,0.2998,3340.3,3340.2,0.1083]
[1735344399313,0.7671,3340.3,3340.2,0.1083]
[1735344402421,3.04716334,3340.3,3340.2,0.1083]
[1735344402616,15.20705835,3340.3,3338.5,2.28006334]
[1735344402814,3.2078,3339.4,3338.6,0.29995]
[1735344403017,0.29993,3339.0,3338.5,2.73726334]
[1735344403316,0.4707,3339.3,3338.5,2.73726334]
[1735344403512,0.29993,3338.9,3338.5,3.03722334]
[1735344404215,0.4707,3339.3,3338.5,2.73726334]
[1735344404407,0.29991,3339.1,3338.5,5.94506334]
[1735344404613,0.29991,3339.1,3338.7,0.29994]
[1735344406115,3.2078,3339.4,3338.5,5.94506334]
[1735344406417,3.2078,3339.4,3339.3,0.29989]
[1735344407416,3.2078,3339.4,3339.2,1.1659]
[1735344408117,3.2078,3339.4,3339.3,0.29989]
[1735344408419,0.29986,3339.7,3339.4,0.29988]
[1735344408621,0.29986,3339.7,3339.3,0.76049]
[1735344408919,0.29988,3339.5,3339.2,1.1659]
[1735344409522,0.29987,3339.6,3339.2,1.1659]
[1735344409720,3.2078,3340.0,3339.2,1.1659]
[1735344409922,0.29987,3339.6,3339.2,1.1659]
[1735344410823,0.29989,3339.3,3339.2,0.866]
[1735344412013,0.4555,3339.5,3338.8,0.4606]
[1735344412014,3.2078,3339.4,3338.8,0.4606]
[1735344412214,0.29995,3338.7,3338.5,3.2078]
[1735344412420,3.2078,3339.0,3338.5,3.2078]
[1735344412615,0.29999,3338.3,3338.1,0.4445]
[1735344412921,0.29999,3338.3,3338.0,3.50781]
[1735344413617,0.29998,3338.4,3338.1,0.29999]
[1735344413821,0.29997,3338.5,3338.2,0.29998]
[1735344414216,0.72954,3338.8,3338.5,0.29996]
[1735344415025,0.29995,3338.7,3338.4,0.29997]
[1735344415626,0.4296,3338.8,3338.1,2.28006334]
[1735344415827,0.4296,3338.8,3338.1,0.3]
[1735344415828,0.29997,3338.5,3338.1,0.3]
[1735344417929,0.29998,3338.4,3338.1,0.3]
[1735344418734,0.29997,3338.5,3338.3,0.29998]
[1735344419026,0.29997,3338.5,3338.0,3.2078]
[1735344419027,0.29994,3338.8,3338.5,0.29997]
[1735344419226,0.29994,3338.8,3338.6,0.76076]
[1735344419824,0.29994,3338.8,3338.6,0.4608]
[1735344420229,0.29995,3338.7,3338.6,0.4608]
[1735344426634,0.29995,3338.7,3338.6,0.76076]
[1735344429532,3.2078,3339.0,3338.6,0.4608]
[1735344429735,3.2078,3339.4,3339.3,0.29989]
[1735344430335,3.2078,3339.8,3339.7,0.29986]
[1735344430527,3.2078,3339.8,3339.7,2.57992334]
[1735344430726,0.29985,3339.9,3339.5,0.29988]
[1735344430933,0.29982,3340.2,3340.0,0.29982]
[1735344431523,0.29981,3340.3,3340.0,0.29982]
[1735344431930,0.29982,3340.1,3339.8,0.29985]
[1735344432436,0.29982,3340.2,3339.9,0.29984]
[1735344432733,0.29981,3340.3,3339.9,0.29984]
[1735344432930,7.50832933,3340.6,3339.8,0.29985]
[1735344433127,3.2078,3340.3,3339.4,3.16196334]
[1735344433331,3.2078,3340.3,3339.3,4.75369]
[1735344433332,0.29987,3339.6,3339.3,4.75369]
[1735344433532,0.29987,3339.6,3339.3,3.50769]
[1735344434233,0.9298,3340.2,3339.3,3.2078]
[1735344434535,0.29988,3339.5,3339.3,3.2078]
[1735344434733,0.4625,3339.4,3339.3,3.2078]
[1735344435732,0.4625,3339.4,3339.3,3.50769]
[1735344436933,0.4625,3339.4,3339.3,3.2078]
[1735344439635,0.76238,3339.4,3339.3,3.2078]
[1735344441042,0.4625,3339.4,3339.0,0.29992]
[1735344441235,0.2999,3339.3,3339.0,3.50772]
[1735344441934,0.4625,3339.4,3339.0,3.2078]
[1735344442141,3.2078,3339.7,3339.0,3.2078]
[1735344442142,3.2078,3339.7,3339.6,0.29987]
[1735344442337,0.29981,3340.3,3340.0,0.29982]
[1735344444647,0.4539,3340.5,3339.9,5.48786334]
[1735344445343,0.4539,3340.5,3340.3,0.2998]
[1735344445945,0.75369,3340.5,3340.2,0.29981]
[1735344446851,0.00290989,3341.1,3340.9,0.29974]
[1735344447150,0.00290989,3341.1,3341.0,0.29974]
[1735344448742,3.2078,3341.7,3341.0,7.28006334]
[1735344448942,3.2078,3341.7,3341.6,0.29969]
[1735344449441,0.29966,3341.9,3341.6,0.29969]
[1735344449645,0.29967,3341.9,3341.5,0.73649]
[1735344450043,0.4404,3342.2,3341.5,0.4368]
[1735344450243,0.29965,3342.1,3341.5,0.4368]
[1735344450447,0.29966,3342.0,3341.6,0.29968]
[1735344450637,0.29966,3342.0,3341.7,0.29968]
[1735344450842,0.29966,3342.0,3341.6,0.29968]
[1735344451243,0.29966,3342.0,3341.7,0.29968]
[1735344452041,0.29965,3342.1,3341.7,0.29968]
[1735344452249,0.74003,3342.2,3341.8,0.29967]
[1735344452649,0.74003,3342.2,3341.7,0.29967]
[1735344452844,0.29964,3342.1,3341.7,0.29967]
[1735344454650,0.29965,3342.0,3341.6,0.72698]
[1735344455646,0.29965,3342.1,3341.7,0.29967]
[1735344457352,0.29966,3341.9,3341.6,0.4273]
[1735344457550,0.29968,3341.7,3341.6,0.4273]
[1735344457952,0.29969,3341.6,3341.5,0.4368]
[1735344458156,3.2078,3341.8,3341.1,2.28006334]
[1735344458347,0.29967,3341.9,3341.6,0.29969]
[1735344458552,0.29967,3341.9,3341.5,0.74049]
[1735344458758,0.29967,3341.9,3341.6,0.4701]
[1735344458954,0.29967,3341.8,3341.6,0.4701]
[1735344459153,3.2078,3342.2,3341.6,0.4701]
[1735344459454,0.29967,3341.8,3341.6,0.4701]
[1735344459857,3.2078,3342.2,3341.6,0.4701]
[1735344460053,0.29966,3341.9,3341.6,0.4701]
[1735344460359,0.29968,3341.7,3341.6,0.4701]
[1735344464665,0.29967,3341.8,3341.6,0.4701]
[1735344465758,3.2078,3342.1,3341.6,0.4701]
[1735344465958,0.29968,3341.7,3341.6,0.4701]
[1735344467961,3.2078,3342.1,3341.3,3.2078]
[1735344468165,0.9046,3341.6,3341.3,3.2078]
[1735344468374,0.29971,3341.4,3341.3,3.2078]
[1735344469872,0.29971,3341.4,3341.1,2.57978334]
[1735344470070,0.29971,3341.3,3341.1,2.57978334]
[1735344470866,0.9046,3341.6,3341.1,2.28006334]
[1735344471067,0.9046,3341.6,3340.9,0.4664]
[1735344471473,0.29973,3341.1,3340.9,0.76615]
[1735344472073,0.29972,3341.3,3341.1,0.29972]
[1735344472279,0.29972,3341.3,3341.1,0.29973]
[1735344472465,0.29974,3341.0,3340.9,0.4664]
[1735344472667,0.29975,3340.9,3340.8,5.48786334]
[1735344472863,0.29979,3340.5,3340.4,3.2078]
[1735344473171,0.29979,3340.4,3340.3,0.4696]
[1735344473675,0.2998,3340.3,3340.2,2.28006334]
[1735344474172,1.3656,3340.7,3339.9,5.48786334]
[1735344474364,0.29981,3340.3,3340.1,0.29982]
[1735344475370,1.3656,3340.7,3339.9,5.48786334]
[1735344475667,0.29984,3339.9,3339.8,0.9165]
[1735344475870,3.2078,3340.4,3339.8,0.9165]
[1735344476168,0.29982,3340.2,3340.0,0.29983]
[1735344477475,0.29979,3340.5,3340.3,0.2998]
[1735344477674,0.2998,3340.3,3340.2,2.28006334]
[1735344478175,0.29979,3340.5,3340.3,0.2998]
[1735344478576,0.29978,3340.6,3340.3,0.2998]
[1735344478772,0.896,3340.7,3340.3,0.2998]
[1735344478978,0.2998,3340.4,3340.2,2.28006334]
[1735344479171,0.2998,3340.4,3340.2,2.57987334]
[1735344480179,3.2078,3340.9,3340.2,2.28006334]
[1735344480377,3.2078,3340.9,3340.5,2.28006334]
[1735344480573,0.29974,3341.1,3340.8,2.57981334]
[1735344480880,0.29974,3341.0,3340.8,2.57981334]
[1735344481877,0.9215,3341.3,3340.6,0.9054]
[1735344482172,0.29976,3340.8,3340.6,1.20518]
[1735344482379,0.9215,3341.3,3340.6,0.9054]
[1735344482570,0.29974,3341.0,3340.8,0.29975]
[1735344483177,0.29972,3341.2,3341.0,0.29973]
[1735344483482,3.2078,3341.4,3340.9,2.28006334]
[1735344483683,3.2078,3341.4,3341.3,0.29971]
[1735344484481,3.2078,3341.4,3341.3,1.19841]
[1735344485078,3.2078,3341.4,3340.9,2.28006334]
[1735344485383,0.29976,3340.8,3340.6,2.57983334]
[1735344485681,3.2078,3341.4,3340.6,2.57983334]
[1735344485682,0.4658,3341.3,3340.6,2.28006334]
[1735344485887,0.29974,3341.1,3340.9,0.29975]
[1735344486072,0.76552,3341.3,3341.0,0.29973]
[1735344486381,0.29973,3341.2,3341.0,0.29973]
[1735344486585,0.4658,3341.3,3340.8,0.29975]
[1735344486974,0.29975,3340.9,3340.7,3.2078]
[1735344487175,0.29976,3340.8,3340.7,3.2078]
[1735344487378,0.73446,3340.8,3340.7,3.2078]
[1735344488171,0.29979,3340.5,3340.3,5.78766334]
[1735344488379,0.4347,3340.8,3340.3,3.2078]
[1735344488587,0.29979,3340.4,3340.3,3.2078]
[1735344489287,4.1421,3340.7,3339.9,3.50763]
[1735344489482,3.2078,3340.2,3339.5,0.4296]
[1735344489787,3.2078,3340.2,3339.4,5.48786334]
[1735344489788,0.29986,3339.8,3339.6,0.29987]
[1735344490280,0.29986,3339.8,3339.6,0.29986]
[1735344491379,0.4658,3340.1,3339.6,0.29986]
[1735344491583,0.29985,3339.9,3339.7,0.29985]
[1735344491886,0.4658,3340.1,3339.6,0.29986]
[1735344492287,0.4658,3340.1,3339.4,5.48786334]
[1735344492483,0.29984,3339.9,3339.7,0.29986]
[1735344492882,0.4658,3340.1,3339.4,5.48786334]
[1735344493181,0.29984,3339.9,3339.7,0.29985]
[1735344496481,0.4658,3340.1,3339.4,5.48786334]
[1735344496687,0.29985,3339.8,3339.6,0.29986]
[1735344497086,0.29984,3339.9,3339.4,3.2078]
[1735344497287,0.29988,3339.5,3339.3,0.466]
[1735344497487,0.29988,3339.5,3339.3,0.76589]
[1735344497887,0.29988,3339.4,3339.3,0.466]
[1735344498091,0.29988,3339.5,3339.3,0.466]
[1735344498787,0.29987,3339.6,3339.3,0.466]
[1735344498981,0.8615,3340.0,3339.3,2.74606334]
[1735344499186,0.4332,3340.0,3339.6,2.28006334]
[1735344499393,0.29984,3339.9,3339.7,0.29986]
[1735344499697,0.73303,3340.0,3339.7,0.29986]
[1735344500192,0.29984,3339.9,3339.7,0.29986]
[1735344500894,0.29984,3339.9,3339.6,2.28006334]
[1735344501094,0.29985,3339.8,3339.6,2.57992334]
[1735344501291,0.29985,3339.8,3339.6,2.28006334]
[1735344501493,0.4332,3340.0,3339.4,3.2078]
[1735344501693,0.29988,3339.5,3339.3,0.76589]
[1735344503089,0.8929,3340.0,3339.3,0.466]
[1735344503289,0.29986,3339.7,3339.4,0.29988]
[1735344503696,0.29986,3339.7,3339.5,0.29987]
[1735344504693,0.8929,3340.0,3339.3,2.74606334]
[1735344504893,0.29987,3339.6,3339.3,2.74606334]
[1735344505088,0.29987,3339.6,3339.5,0.29988]
[1735344506295,0.29987,3339.6,3339.4,0.29988]
[1735344506892,0.29987,3339.6,3339.5,0.29988]
[1735344507495,0.8929,3340.0,3339.0,4.1017]
[1735344507496,0.74961,3339.9,3339.0,5.92416334]
[1735344507795,0.29989,3339.4,3339.2,0.2999]
[1735344509091,0.8929,3340.0,3339.0,5.92416334]
[1735344509387,0.29987,3339.6,3339.1,0.29991]
[1735344509592,0.29988,3339.5,3339.4,0.29988]
[1735344509800,0.29989,3339.3,3339.2,0.2999]
[1735344510286,0.74961,3339.9,3339.0,3.6441]
[1735344510287,0.29991,3339.1,3339.0,3.6441]
[1735344510489,0.29991,3339.1,3339.0,3.2078]
[1735344511088,0.29991,3339.2,3339.1,0.29991]
[1735344511498,0.29991,3339.1,3339.0,3.50772]
[1735344512701,0.29991,3339.1,3339.0,3.2078]
[1735344513997,1.17731,3339.5,3338.7,2.28006334]
[1735344514198,0.29992,3339.0,3338.7,2.28006334]
[1735344514395,0.29992,3339.0,3338.9,0.29993]